[Event "Titled Tuesday Blitz May 03 Early 2022"]
[White "Nakamura, Hikaru"]
[Black "Lazavik, Denis"]
[WhiteFideId "2016192"]
[BlackFideId "13515110"]
[WhiteElo "2850"]
[BlackElo "2437"]
[Result "0-1"]
[Round "05"]
[TimeControl "180+1"]
[Date "2022.05.03"]
[WhiteClock "0:00:04"]
[BlackClock "0:00:06"]

1. Nf3 {[%clk 0:03:00]}  d5 {[%clk 0:02:59]} 2. e3 {[%clk 0:02:59]}  c6 {[%clk 0:02:59]} 3. c4 {[%clk 0:02:57]}  Nf6 {[%clk 0:02:58]} 4. d4 {[%clk 0:02:51]}  Bf5 {[%clk 0:02:56]} 5. Nc3 {[%clk 0:02:50]}  e6 {[%clk 0:02:55]} 6. Nh4 {[%clk 0:02:42]}  Be4 {[%clk 0:02:54]} 7. f3 {[%clk 0:02:38]}  Bg6 {[%clk 0:02:54]} 8. Qb3 {[%clk 0:02:38]}  Qc7 {[%clk 0:02:54]} 9. cxd5 {[%clk 0:02:38]}  cxd5 {[%clk 0:02:53]} 10. Nxg6 {[%clk 0:02:38]}  hxg6 {[%clk 0:02:53]} 11. Bd2 {[%clk 0:02:39]}  Nc6 {[%clk 0:02:53]} 12. O-O-O {[%clk 0:02:40]}  a6 {[%clk 0:02:48]} 13. Kb1 {[%clk 0:02:40]}  Rc8 {[%clk 0:02:46]} 14. Rc1 {[%clk 0:02:40]}  Nd7 {[%clk 0:02:42]} 15. Ne2 {[%clk 0:02:29]}  Be7 {[%clk 0:02:22]} 16. e4 {[%clk 0:02:29]}  Qb6 {[%clk 0:02:16]} 17. Qd1 {[%clk 0:01:50]}  O-O {[%clk 0:02:05]} 18. Rc3 {[%clk 0:01:48]}  dxe4 {[%clk 0:01:27]} 19. Rb3 {[%clk 0:01:39]}  Qa7 {[%clk 0:01:18]} 20. fxe4 {[%clk 0:01:21]}  Nf6 {[%clk 0:01:17]} 21. Be3 {[%clk 0:01:13]}  Na5 {[%clk 0:01:15]} 22. Rd3 {[%clk 0:00:56]}  Nc4 {[%clk 0:01:14]} 23. Bg1 {[%clk 0:00:51]}  Nxe4 {[%clk 0:01:12]} 24. Ng3 {[%clk 0:00:50]}  Qb6 {[%clk 0:01:06]} 25. b3 {[%clk 0:00:32]}  Na3+ {[%clk 0:00:51]} 26. Ka1 {[%clk 0:00:32]}  Nxg3 {[%clk 0:00:38]} 27. hxg3 {[%clk 0:00:31]}  Nc2+ {[%clk 0:00:37]} 28. Kb1 {[%clk 0:00:31]}  Nb4 {[%clk 0:00:38]} 29. Rf3 {[%clk 0:00:21]}  Qa5 {[%clk 0:00:33]} 30. a4 {[%clk 0:00:20]}  Nd5 {[%clk 0:00:33]} 31. Kb2 {[%clk 0:00:17]}  b5 {[%clk 0:00:31]} 32. g4 {[%clk 0:00:17]}  bxa4 {[%clk 0:00:17]} 33. Rfh3 {[%clk 0:00:15]}  f5 {[%clk 0:00:18]} 34. gxf5 {[%clk 0:00:16]}  exf5 {[%clk 0:00:14]} 35. Bc4 {[%clk 0:00:16]}  Rxc4 {[%clk 0:00:14]} 36. bxc4 {[%clk 0:00:16]}  Qb4+ {[%clk 0:00:12]} 37. Ka2 {[%clk 0:00:13]}  Qxc4+ {[%clk 0:00:11]} 38. Ka1 {[%clk 0:00:13]}  Bb4 {[%clk 0:00:08]} 39. Rh8+ {[%clk 0:00:03]}  Kf7 {[%clk 0:00:08]} 40. Rxf8+ {[%clk 0:00:04]}  Kxf8 {[%clk 0:00:08]} 41. Rh3 {[%clk 0:00:04]}  Bc3+ {[%clk 0:00:08]} 42. Kb1 {[%clk 0:00:04]}  Qb4+ {[%clk 0:00:08]} 43. Kc2 {[%clk 0:00:04]}  Qb2+ {[%clk 0:00:06]} 44. Kd3 {[%clk 0:00:05]}  Nf4+ {[%clk 0:00:07]} 45. Ke3 {[%clk 0:00:05]}  Nxh3 {[%clk 0:00:07]} 46. gxh3 {[%clk 0:00:06]}  Qb3 {[%clk 0:00:08]} 47. Qxb3 {[%clk 0:00:03]}  axb3 {[%clk 0:00:08]} 48. Kd3 {[%clk 0:00:04]}  b2 {[%clk 0:00:08]} 49. Kc2 {[%clk 0:00:04]}  Ke7 {[%clk 0:00:06]} 0-1


[Site "https://www.chess.com"]

[Event "Titled Tuesday Blitz May 03 Early 2022"]
[White "Ohanyan, Emin"]
[Black "Babazada, Khazar"]
[WhiteFideId "13312022"]
[BlackFideId "13413554"]
[WhiteElo "1927"]
[BlackElo "2406"]
[Result "0-1"]
[Round "05"]
[TimeControl "180+1"]
[Date "2022.05.03"]
[WhiteClock "0:00:02"]
[BlackClock "0:00:25"]

1. e4 {[%clk 0:02:58]}  Nf6 {[%clk 0:03:00]} 2. e5 {[%clk 0:02:56]}  Nd5 {[%clk 0:03:01]} 3. d4 {[%clk 0:02:56]}  Nb6 {[%clk 0:03:01]} 4. c4 {[%clk 0:02:56]}  d6 {[%clk 0:03:01]} 5. f4 {[%clk 0:02:57]}  dxe5 {[%clk 0:03:00]} 6. fxe5 {[%clk 0:02:58]}  Bf5 {[%clk 0:02:59]} 7. Be3 {[%clk 0:02:56]}  e6 {[%clk 0:02:59]} 8. Nc3 {[%clk 0:02:56]}  Be7 {[%clk 0:02:59]} 9. Nf3 {[%clk 0:02:55]}  O-O {[%clk 0:03:00]} 10. Be2 {[%clk 0:02:27]}  f6 {[%clk 0:02:59]} 11. O-O {[%clk 0:02:22]}  Nc6 {[%clk 0:02:57]} 12. exf6 {[%clk 0:01:47]}  Bxf6 {[%clk 0:02:58]} 13. c5 {[%clk 0:01:26]}  Nd5 {[%clk 0:02:50]} 14. Nxd5 {[%clk 0:01:27]}  exd5 {[%clk 0:02:49]} 15. Qd2 {[%clk 0:01:12]}  Be4 {[%clk 0:02:48]} 16. b4 {[%clk 0:01:09]}  Qe8 {[%clk 0:02:45]} 17. b5 {[%clk 0:01:06]}  Ne7 {[%clk 0:02:42]} 18. Bf2 {[%clk 0:00:59]}  Qg6 {[%clk 0:02:39]} 19. Rae1 {[%clk 0:00:58]}  Rae8 {[%clk 0:02:36]} 20. Bg3 {[%clk 0:00:45]}  Nf5 {[%clk 0:02:33]} 21. Be5 {[%clk 0:00:44]}  Kh8 {[%clk 0:02:09]} 22. Bd3 {[%clk 0:00:37]}  Nh6 {[%clk 0:01:52]} 23. Bxf6 {[%clk 0:00:33]}  gxf6 {[%clk 0:01:51]} 24. Bxe4 {[%clk 0:00:29]}  dxe4 {[%clk 0:01:42]} 25. Nh4 {[%clk 0:00:29]}  Qg5 {[%clk 0:01:43]} 26. Qf4 {[%clk 0:00:25]}  e3 {[%clk 0:01:27]} 27. Qxg5 {[%clk 0:00:23]}  fxg5 {[%clk 0:01:25]} 28. Nf3 {[%clk 0:00:10]}  Nf5 {[%clk 0:01:19]} 29. g4 {[%clk 0:00:07]}  Nh6 {[%clk 0:01:17]} 30. h3 {[%clk 0:00:06]}  Nf7 {[%clk 0:01:09]} 31. Re2 {[%clk 0:00:06]}  Re7 {[%clk 0:01:06]} 32. Kg2 {[%clk 0:00:06]}  Kg7 {[%clk 0:01:04]} 33. Rfe1 {[%clk 0:00:06]}  Rfe8 {[%clk 0:01:04]} 34. Rd1 {[%clk 0:00:03]}  c6 {[%clk 0:01:02]} 35. a4 {[%clk 0:00:02]}  h6 {[%clk 0:00:59]} 36. Rd3 {[%clk 0:00:03]}  Kf6 {[%clk 0:00:57]} 37. Ne1 {[%clk 0:00:04]}  Nd8 {[%clk 0:00:55]} 38. Nc2 {[%clk 0:00:04]}  Ne6 {[%clk 0:00:53]} 39. Rexe3 {[%clk 0:00:02]}  Nf4+ {[%clk 0:00:54]} 40. Kf3 {[%clk 0:00:02]}  Nxd3 {[%clk 0:00:50]} 41. Rxd3 {[%clk 0:00:03]}  Re2 {[%clk 0:00:50]} 42. Ne3 {[%clk 0:00:03]}  Rh2 {[%clk 0:00:50]} 43. Kg3 {[%clk 0:00:03]}  Ra2 {[%clk 0:00:51]} 44. d5 {[%clk 0:00:03]}  cxd5 {[%clk 0:00:44]} 45. Nxd5+ {[%clk 0:00:04]}  Kf7 {[%clk 0:00:45]} 46. Rf3+ {[%clk 0:00:02]}  Kg7 {[%clk 0:00:45]} 47. c6 {[%clk 0:00:02]}  bxc6 {[%clk 0:00:43]} 48. bxc6 {[%clk 0:00:03]}  Rc2 {[%clk 0:00:40]} 49. c7 {[%clk 0:00:04]}  Re5 {[%clk 0:00:39]} 50. Rd3 {[%clk 0:00:03]}  Kf7 {[%clk 0:00:37]} 51. Rf3+ {[%clk 0:00:02]}  Ke6 {[%clk 0:00:33]} 52. Rf8 {[%clk 0:00:02]}  Kxd5 {[%clk 0:00:24]} 53. c8=Q {[%clk 0:00:02]}  Re3+ {[%clk 0:00:24]} 54. Rf3 {[%clk 0:00:01]}  Rxf3+ {[%clk 0:00:24]} 55. Kxf3 {[%clk 0:00:02]}  Rxc8 {[%clk 0:00:25]} 0-1


[Site "https://www.chess.com"]

[Event "Titled Tuesday Blitz May 03 Early 2022"]
[White "Omariev, Maksim"]
[Black "Tasev, Dejan"]
[WhiteFideId "4193423"]
[BlackFideId "936618"]
[WhiteElo "2512"]
[BlackElo "2253"]
[Result "0-1"]
[Round "05"]
[TimeControl "180+1"]
[Date "2022.05.03"]
[WhiteClock "0:00:08"]
[BlackClock "0:00:19"]

1. b3 {[%clk 0:03:00]}  Nf6 {[%clk 0:02:58]} 2. Bb2 {[%clk 0:03:01]}  g6 {[%clk 0:02:58]} 3. g4 {[%clk 0:02:59]}  Bg7 {[%clk 0:02:54]} 4. g5 {[%clk 0:02:59]}  Nh5 {[%clk 0:02:54]} 5. Bxg7 {[%clk 0:03:00]}  Nxg7 {[%clk 0:02:54]} 6. Nc3 {[%clk 0:03:01]}  d5 {[%clk 0:02:53]} 7. Bg2 {[%clk 0:03:00]}  c6 {[%clk 0:02:53]} 8. e3 {[%clk 0:02:57]}  h6 {[%clk 0:02:43]} 9. gxh6 {[%clk 0:02:32]}  Rxh6 {[%clk 0:02:43]} 10. Qf3 {[%clk 0:02:30]}  Nd7 {[%clk 0:02:35]} 11. O-O-O {[%clk 0:02:29]}  Nf6 {[%clk 0:02:35]} 12. Nge2 {[%clk 0:02:17]}  Qa5 {[%clk 0:02:31]} 13. Kb2 {[%clk 0:02:12]}  Bd7 {[%clk 0:02:09]} 14. Qf4 {[%clk 0:01:35]}  Rh7 {[%clk 0:02:03]} 15. h3 {[%clk 0:00:39]}  Ne6 {[%clk 0:01:55]} 16. Qa4 {[%clk 0:00:32]}  Qc7 {[%clk 0:01:51]} 17. f4 {[%clk 0:00:27]}  b5 {[%clk 0:01:44]} 18. Qa6 {[%clk 0:00:16]}  Nc5 {[%clk 0:01:26]} 19. Qa3 {[%clk 0:00:14]}  Qb6 {[%clk 0:01:23]} 20. b4 {[%clk 0:00:12]}  Nb7 {[%clk 0:01:20]} 21. Nd4 {[%clk 0:00:11]}  a5 {[%clk 0:01:09]} 22. Nce2 {[%clk 0:00:10]}  Ra7 {[%clk 0:01:04]} 23. Nb3 {[%clk 0:00:03]}  axb4 {[%clk 0:00:57]} 24. Qxb4 {[%clk 0:00:04]}  c5 {[%clk 0:00:55]} 25. Qc3 {[%clk 0:00:05]}  b4 {[%clk 0:00:51]} 26. Qe5 {[%clk 0:00:05]}  Qa6 {[%clk 0:00:37]} 27. Nec1 {[%clk 0:00:06]}  c4 {[%clk 0:00:31]} 28. Qb8+ {[%clk 0:00:06]}  Nd8 {[%clk 0:00:30]} 29. Nc5 {[%clk 0:00:07]}  Qa3+ {[%clk 0:00:28]} 30. Kb1 {[%clk 0:00:07]}  c3 {[%clk 0:00:24]} 31. N5d3 {[%clk 0:00:07]}  Bf5 {[%clk 0:00:21]} 32. Qxb4 {[%clk 0:00:03]}  cxd2 {[%clk 0:00:18]} 33. Qxa3 {[%clk 0:00:02]}  Rxa3 {[%clk 0:00:19]} 34. Rxd2 {[%clk 0:00:02]}  Ne4 {[%clk 0:00:18]} 35. Rdd1 {[%clk 0:00:01]}  Nc3+ {[%clk 0:00:18]} 36. Kb2 {[%clk 0:00:02]}  Nxd1+ {[%clk 0:00:18]} 37. Kxa3 {[%clk 0:00:02]}  Nxe3 {[%clk 0:00:19]} 38. Bf3 {[%clk 0:00:02]}  Nxc2+ {[%clk 0:00:19]} 39. Kb2 {[%clk 0:00:02]}  Nd4 {[%clk 0:00:19]} 40. Bxd5 {[%clk 0:00:02]}  e6 {[%clk 0:00:18]} 41. Bc4 {[%clk 0:00:02]}  N8c6 {[%clk 0:00:18]} 42. a4 {[%clk 0:00:02]}  Ke7 {[%clk 0:00:18]} 43. Kc3 {[%clk 0:00:02]}  f6 {[%clk 0:00:17]} 44. Bb5 {[%clk 0:00:02]}  Kd6 {[%clk 0:00:17]} 45. Nb4 {[%clk 0:00:02]}  Nxb4 {[%clk 0:00:16]} 46. Kxb4 {[%clk 0:00:03]}  Rc7 {[%clk 0:00:15]} 47. Rd1 {[%clk 0:00:03]}  e5 {[%clk 0:00:15]} 48. fxe5+ {[%clk 0:00:03]}  fxe5 {[%clk 0:00:16]} 49. Nb3 {[%clk 0:00:04]}  Kd5 {[%clk 0:00:16]} 50. Nxd4 {[%clk 0:00:03]}  exd4 {[%clk 0:00:17]} 51. a5 {[%clk 0:00:04]}  Bxh3 {[%clk 0:00:15]} 52. a6 {[%clk 0:00:04]}  Bg4 {[%clk 0:00:16]} 53. Rd2 {[%clk 0:00:04]}  Bf5 {[%clk 0:00:16]} 54. Ka5 {[%clk 0:00:04]}  Rc1 {[%clk 0:00:16]} 55. Kb6 {[%clk 0:00:04]}  Ke4 {[%clk 0:00:15]} 56. a7 {[%clk 0:00:04]}  Ra1 {[%clk 0:00:14]} 57. Bc6+ {[%clk 0:00:04]}  Ke3 {[%clk 0:00:14]} 58. Rb2 {[%clk 0:00:04]}  d3 {[%clk 0:00:14]} 59. Bb5 {[%clk 0:00:03]}  Be4 {[%clk 0:00:14]} 60. Bxd3 {[%clk 0:00:02]}  Bxd3 {[%clk 0:00:14]} 61. Rb4 {[%clk 0:00:01]}  Be4 {[%clk 0:00:14]} 62. Rb5 {[%clk 0:00:01]}  Ra2 {[%clk 0:00:14]} 63. Rg5 {[%clk 0:00:01]}  Kf4 {[%clk 0:00:13]} 64. Rg1 {[%clk 0:00:01]}  Bf5 {[%clk 0:00:14]} 65. Rf1+ {[%clk 0:00:01]}  Ke5 {[%clk 0:00:14]} 66. Rg1 {[%clk 0:00:02]}  Kf6 {[%clk 0:00:14]} 67. Rf1 {[%clk 0:00:02]}  g5 {[%clk 0:00:13]} 68. Rg1 {[%clk 0:00:03]}  g4 {[%clk 0:00:14]} 69. Kb7 {[%clk 0:00:03]}  Be4+ {[%clk 0:00:13]} 70. Kb8 {[%clk 0:00:04]}  Bf3 {[%clk 0:00:14]} 71. Rf1 {[%clk 0:00:04]}  Kg5 {[%clk 0:00:14]} 72. Rg1 {[%clk 0:00:04]}  Kf4 {[%clk 0:00:14]} 73. Rf1 {[%clk 0:00:04]}  g3 {[%clk 0:00:15]} 74. Rg1 {[%clk 0:00:04]}  g2 {[%clk 0:00:15]} 75. Rxg2 {[%clk 0:00:05]}  Bxg2 {[%clk 0:00:15]} 76. a8=Q {[%clk 0:00:05]}  Rxa8+ {[%clk 0:00:15]} 77. Kc7 {[%clk 0:00:06]}  Ra3 {[%clk 0:00:16]} 78. Kb8 {[%clk 0:00:06]}  Re3 {[%clk 0:00:17]} 79. Ka7 {[%clk 0:00:06]}  Bf1 {[%clk 0:00:18]} 80. Kb8 {[%clk 0:00:07]}  Re7 {[%clk 0:00:17]} 81. Kc8 {[%clk 0:00:07]}  Ke5 {[%clk 0:00:18]} 82. Kd8 {[%clk 0:00:08]}  Kd6 {[%clk 0:00:18]} 83. Kc8 {[%clk 0:00:08]}  Kc6 {[%clk 0:00:18]} 84. Kd8 {[%clk 0:00:08]}  Re6 {[%clk 0:00:19]} 0-1


[Site "https://www.chess.com"]

[Event "Titled Tuesday Blitz May 03 Early 2022"]
[White "Oparin, Grigoriy"]
[Black "Sarana, Alexey"]
[WhiteFideId "24125890"]
[BlackFideId "24133795"]
[WhiteElo "2665"]
[BlackElo "2666"]
[Result "1/2-1/2"]
[Round "05"]
[TimeControl "180+1"]
[Date "2022.05.03"]
[WhiteClock "0:00:28"]
[BlackClock "0:00:07"]

1. d4 {[%clk 0:03:00]}  Nf6 {[%clk 0:03:00]} 2. c4 {[%clk 0:03:01]}  e6 {[%clk 0:03:00]} 3. Nf3 {[%clk 0:03:02]}  d5 {[%clk 0:03:01]} 4. g3 {[%clk 0:03:02]}  Bb4+ {[%clk 0:03:01]} 5. Bd2 {[%clk 0:03:02]}  Be7 {[%clk 0:03:02]} 6. Bg2 {[%clk 0:03:02]}  c6 {[%clk 0:03:03]} 7. O-O {[%clk 0:03:03]}  Nbd7 {[%clk 0:03:04]} 8. Bc3 {[%clk 0:03:02]}  Ne4 {[%clk 0:03:00]} 9. Nbd2 {[%clk 0:03:02]}  Ndf6 {[%clk 0:02:59]} 10. Ne5 {[%clk 0:02:55]}  O-O {[%clk 0:02:53]} 11. Qc2 {[%clk 0:02:53]}  Nxc3 {[%clk 0:02:45]} 12. bxc3 {[%clk 0:02:54]}  Nd7 {[%clk 0:02:44]} 13. Nd3 {[%clk 0:02:53]}  b6 {[%clk 0:02:40]} 14. e4 {[%clk 0:02:53]}  dxc4 {[%clk 0:02:40]} 15. Nxc4 {[%clk 0:02:53]}  Ba6 {[%clk 0:02:40]} 16. Ne3 {[%clk 0:02:52]}  Nc5 {[%clk 0:02:25]} 17. Ne5 {[%clk 0:02:25]}  Bxf1 {[%clk 0:02:08]} 18. Rxf1 {[%clk 0:02:26]}  Qc7 {[%clk 0:02:03]} 19. Nxc6 {[%clk 0:02:05]}  Qxc6 {[%clk 0:01:56]} 20. e5 {[%clk 0:02:05]}  Qc7 {[%clk 0:01:34]} 21. Bxa8 {[%clk 0:02:05]}  Rxa8 {[%clk 0:01:34]} 22. dxc5 {[%clk 0:02:06]}  Bxc5 {[%clk 0:01:29]} 23. Qe4 {[%clk 0:02:04]}  Rc8 {[%clk 0:01:29]} 24. Rd1 {[%clk 0:02:01]}  h6 {[%clk 0:01:28]} 25. Rd3 {[%clk 0:01:56]}  b5 {[%clk 0:01:25]} 26. h4 {[%clk 0:01:52]}  Qa5 {[%clk 0:01:17]} 27. Ng4 {[%clk 0:01:47]}  Qxa2 {[%clk 0:01:09]} 28. Rd7 {[%clk 0:01:47]}  h5 {[%clk 0:00:49]} 29. Ne3 {[%clk 0:00:46]}  Bxe3 {[%clk 0:00:41]} 30. Qxe3 {[%clk 0:00:46]}  Qa1+ {[%clk 0:00:42]} 31. Kh2 {[%clk 0:00:30]}  Qxc3 {[%clk 0:00:40]} 32. Rd8+ {[%clk 0:00:24]}  Kh7 {[%clk 0:00:41]} 33. Qe4+ {[%clk 0:00:24]}  g6 {[%clk 0:00:40]} 34. Qf4 {[%clk 0:00:25]}  Qc7 {[%clk 0:00:05]} 35. Rxc8 {[%clk 0:00:25]}  Qxc8 {[%clk 0:00:06]} 36. Qxf7+ {[%clk 0:00:25]}  Kh6 {[%clk 0:00:06]} 37. Qf4+ {[%clk 0:00:26]}  Kg7 {[%clk 0:00:06]} 38. Qf6+ {[%clk 0:00:26]}  Kh7 {[%clk 0:00:07]} 39. Qf7+ {[%clk 0:00:27]}  Kh6 {[%clk 0:00:07]} 40. Qf4+ {[%clk 0:00:27]}  Kg7 {[%clk 0:00:07]} 41. Qf6+ {[%clk 0:00:28]}  Kh6 {[%clk 0:00:07]} 42. Qf4+ {[%clk 0:00:28]} 1/2-1/2


[Site "https://www.chess.com"]

[Event "Titled Tuesday Blitz May 03 Early 2022"]
[White "Ovezdurdyyeva, Jemal"]
[Black "Rabineau, Clement"]
[WhiteFideId "14001888"]
[BlackFideId "628891"]
[WhiteElo "1946"]
[BlackElo "2237"]
[Result "1-0"]
[Round "05"]
[TimeControl "180+1"]
[Date "2022.05.03"]
[WhiteClock "0:02:08"]
[BlackClock "0:00:02"]

1. e4 {[%clk 0:03:00]}  d6 {[%clk 0:02:59]} 2. d4 {[%clk 0:02:59]}  g6 {[%clk 0:02:59]} 3. Nc3 {[%clk 0:02:58]}  Bg7 {[%clk 0:02:59]} 4. Be2 {[%clk 0:02:56]}  Nc6 {[%clk 0:02:50]} 5. Be3 {[%clk 0:02:55]}  e5 {[%clk 0:02:45]} 6. dxe5 {[%clk 0:02:53]}  Nxe5 {[%clk 0:02:22]} 7. f4 {[%clk 0:02:50]}  Nc6 {[%clk 0:02:19]} 8. Nf3 {[%clk 0:02:48]}  Nf6 {[%clk 0:02:19]} 9. O-O {[%clk 0:02:48]}  O-O {[%clk 0:02:14]} 10. Nd4 {[%clk 0:02:47]}  Re8 {[%clk 0:02:10]} 11. Bf3 {[%clk 0:02:46]}  Bd7 {[%clk 0:01:52]} 12. Qd2 {[%clk 0:02:36]}  Ng4 {[%clk 0:01:32]} 13. Bxg4 {[%clk 0:02:31]}  Bxg4 {[%clk 0:01:31]} 14. Nxc6 {[%clk 0:02:31]}  bxc6 {[%clk 0:01:30]} 15. Bd4 {[%clk 0:02:31]}  Bd7 {[%clk 0:00:55]} 16. Bxg7 {[%clk 0:02:25]}  Kxg7 {[%clk 0:00:56]} 17. Qd4+ {[%clk 0:02:26]}  Qf6 {[%clk 0:00:55]} 18. e5 {[%clk 0:02:26]}  dxe5 {[%clk 0:00:18]} 19. fxe5 {[%clk 0:02:22]}  Qe6 {[%clk 0:00:17]} 20. Rf2 {[%clk 0:02:21]}  Red8 {[%clk 0:00:17]} 21. Raf1 {[%clk 0:02:21]}  Be8 {[%clk 0:00:17]} 22. Qf4 {[%clk 0:02:21]}  Rd5 {[%clk 0:00:11]} 23. Nxd5 {[%clk 0:02:15]}  cxd5 {[%clk 0:00:11]} 24. Qf6+ {[%clk 0:02:14]}  Qxf6 {[%clk 0:00:08]} 25. exf6+ {[%clk 0:02:15]}  Kf8 {[%clk 0:00:08]} 26. Re1 {[%clk 0:02:15]}  Rb8 {[%clk 0:00:06]} 27. b3 {[%clk 0:02:15]}  Bd7 {[%clk 0:00:05]} 28. Re7 {[%clk 0:02:14]}  Rd8 {[%clk 0:00:02]} 29. Rd2 {[%clk 0:02:14]}  c6 {[%clk 0:00:02]} 30. c4 {[%clk 0:02:15]}  Be6 {[%clk 0:00:02]} 31. cxd5 {[%clk 0:02:11]}  cxd5 {[%clk 0:00:02]} 32. Rxa7 {[%clk 0:02:12]}  d4 {[%clk 0:00:02]} 33. b4 {[%clk 0:02:09]}  g5 {[%clk 0:00:02]} 34. b5 {[%clk 0:02:09]}  g4 {[%clk 0:00:02]} 35. b6 {[%clk 0:02:08]} 1-0


[Site "https://www.chess.com"]

[Event "Titled Tuesday Blitz May 03 Early 2022"]
[White "Petrova, Irina"]
[Black "Yang, Kaiqi"]
[WhiteFideId "14124122"]
[BlackFideId "8604398"]
[WhiteElo "1993"]
[BlackElo "2373"]
[Result "0-1"]
[Round "05"]
[TimeControl "180+1"]
[Date "2022.05.03"]
[WhiteClock "0:00:12"]
[BlackClock "0:00:15"]

1. e4 {[%clk 0:03:00]}  c5 {[%clk 0:01:13]} 2. Nf3 {[%clk 0:03:00]}  Nf6 {[%clk 0:01:11]} 3. e5 {[%clk 0:02:57]}  Nd5 {[%clk 0:01:11]} 4. b3 {[%clk 0:02:56]}  Nc6 {[%clk 0:01:10]} 5. Bb2 {[%clk 0:02:56]}  d6 {[%clk 0:01:09]} 6. exd6 {[%clk 0:02:53]}  Qxd6 {[%clk 0:01:06]} 7. g3 {[%clk 0:02:50]}  Bg4 {[%clk 0:01:06]} 8. Bg2 {[%clk 0:02:49]}  e6 {[%clk 0:00:59]} 9. O-O {[%clk 0:02:48]}  Nd4 {[%clk 0:00:56]} 10. Na3 {[%clk 0:02:22]}  Be7 {[%clk 0:00:55]} 11. Nc4 {[%clk 0:02:22]}  Qc7 {[%clk 0:00:55]} 12. Ne3 {[%clk 0:02:21]}  Nxf3+ {[%clk 0:00:47]} 13. Bxf3 {[%clk 0:02:21]}  Bxf3 {[%clk 0:00:47]} 14. Qxf3 {[%clk 0:02:22]}  Nf6 {[%clk 0:00:47]} 15. Ng4 {[%clk 0:02:17]}  Nxg4 {[%clk 0:00:37]} 16. Qxg4 {[%clk 0:02:17]}  Rg8 {[%clk 0:00:30]} 17. Rad1 {[%clk 0:02:06]}  O-O-O {[%clk 0:00:28]} 18. d4 {[%clk 0:02:05]}  Bf6 {[%clk 0:00:24]} 19. c3 {[%clk 0:01:48]}  Rd7 {[%clk 0:00:24]} 20. dxc5 {[%clk 0:01:45]}  Qxc5 {[%clk 0:00:22]} 21. Rxd7 {[%clk 0:01:44]}  Kxd7 {[%clk 0:00:23]} 22. Rd1+ {[%clk 0:01:42]}  Kc8 {[%clk 0:00:23]} 23. Qa4 {[%clk 0:01:37]}  Rd8 {[%clk 0:00:21]} 24. Rxd8+ {[%clk 0:01:34]}  Kxd8 {[%clk 0:00:22]} 25. Ba3 {[%clk 0:01:20]}  Qxc3 {[%clk 0:00:20]} 26. Qxa7 {[%clk 0:01:20]}  Qc6 {[%clk 0:00:17]} 27. Qa8+ {[%clk 0:01:13]}  Kc7 {[%clk 0:00:16]} 28. Qa5+ {[%clk 0:01:11]}  Kc8 {[%clk 0:00:16]} 29. Qa8+ {[%clk 0:01:08]}  Kc7 {[%clk 0:00:14]} 30. Qa5+ {[%clk 0:01:01]}  Qb6 {[%clk 0:00:14]} 31. Bd6+ {[%clk 0:00:42]}  Kc6 {[%clk 0:00:15]} 32. Qxb6+ {[%clk 0:00:43]}  Kxb6 {[%clk 0:00:15]} 33. Kg2 {[%clk 0:00:43]}  Kc6 {[%clk 0:00:15]} 34. Bb4 {[%clk 0:00:42]}  Kd5 {[%clk 0:00:14]} 35. Kf3 {[%clk 0:00:42]}  Kd4 {[%clk 0:00:14]} 36. Ke2 {[%clk 0:00:40]}  h5 {[%clk 0:00:14]} 37. h4 {[%clk 0:00:40]}  Kd5 {[%clk 0:00:14]} 38. Kd3 {[%clk 0:00:39]}  Bd4 {[%clk 0:00:14]} 39. Be1 {[%clk 0:00:38]}  f5 {[%clk 0:00:14]} 40. b4 {[%clk 0:00:37]}  e5 {[%clk 0:00:14]} 41. a4 {[%clk 0:00:35]}  e4+ {[%clk 0:00:14]} 42. Ke2 {[%clk 0:00:35]}  Kc4 {[%clk 0:00:15]} 43. b5 {[%clk 0:00:32]}  g6 {[%clk 0:00:14]} 44. Ba5 {[%clk 0:00:22]}  Kb3 {[%clk 0:00:14]} 45. f3 {[%clk 0:00:14]}  Kxa4 {[%clk 0:00:13]} 46. Bd8 {[%clk 0:00:12]}  Kxb5 {[%clk 0:00:13]} 47. fxe4 {[%clk 0:00:13]}  fxe4 {[%clk 0:00:14]} 48. Bg5 {[%clk 0:00:12]}  Kc4 {[%clk 0:00:14]} 49. Bc1 {[%clk 0:00:12]}  b5 {[%clk 0:00:15]} 0-1


[Site "https://www.chess.com"]

[Event "Titled Tuesday Blitz May 03 Early 2022"]
[White "Piesik, Piotr"]
[Black "Visakh N R"]
[WhiteFideId "1136194"]
[BlackFideId "25012223"]
[WhiteElo "2190"]
[BlackElo "2448"]
[Result "0-1"]
[Round "05"]
[TimeControl "180+1"]
[Date "2022.05.03"]
[WhiteClock "0:02:38"]
[BlackClock "0:02:33"]

1. Nf3 {[%clk 0:02:58]}  d5 {[%clk 0:02:59]} 2. g3 {[%clk 0:02:59]}  Nd7 {[%clk 0:02:58]} 3. Bg2 {[%clk 0:02:59]}  e5 {[%clk 0:02:57]} 4. d3 {[%clk 0:03:00]}  Ngf6 {[%clk 0:02:57]} 5. O-O {[%clk 0:02:59]}  Bc5 {[%clk 0:02:56]} 6. Nbd2 {[%clk 0:02:59]}  O-O {[%clk 0:02:56]} 7. e4 {[%clk 0:02:59]}  dxe4 {[%clk 0:02:56]} 8. dxe4 {[%clk 0:03:00]}  a5 {[%clk 0:02:55]} 9. a4 {[%clk 0:02:59]}  b6 {[%clk 0:02:51]} 10. h3 {[%clk 0:02:59]}  Ba6 {[%clk 0:02:48]} 11. Re1 {[%clk 0:02:59]}  Qe7 {[%clk 0:02:48]} 12. Nb3 {[%clk 0:02:58]}  Bd6 {[%clk 0:02:47]} 13. Nfd2 {[%clk 0:02:53]}  Rfd8 {[%clk 0:02:46]} 14. Qf3 {[%clk 0:02:47]}  Nf8 {[%clk 0:02:40]} 15. Bf1 {[%clk 0:02:45]}  Bxf1 {[%clk 0:02:39]} 16. Kxf1 {[%clk 0:02:45]}  Ne6 {[%clk 0:02:34]} 17. Nc4 {[%clk 0:02:44]}  Nc5 {[%clk 0:02:34]} 18. Nxc5 {[%clk 0:02:44]}  Bxc5 {[%clk 0:02:35]} 19. Bg5 {[%clk 0:02:42]}  Qe6 {[%clk 0:02:34]} 20. Bxf6 {[%clk 0:02:38]}  Qxc4+ {[%clk 0:02:33]} 0-1


[Site "https://www.chess.com"]